bitfinex-derivatives/quotes_BTCF0:USTF0_20250129
["timestamp","ask_amount","ask_price","bid_price","bid_amount"]
[1738187620307,0.38196063,104000.0,103990.0,0.017]
[1738187620496,0.46156063,104000.0,103990.0,0.017]
[1738187622105,0.57631322,104000.0,103990.0,0.017]
[1738187625710,0.57631322,104000.0,103990.0,0.027]
[1738187631720,0.57631322,104000.0,103990.0,0.3878]
[1738187631911,0.39006959,104000.0,103990.0,0.580135]
[1738187632307,0.39006959,104000.0,103990.0,0.660435]
[1738187632520,0.30906959,104000.0,103990.0,0.660435]
[1738187632719,0.11675259,104000.0,103990.0,0.76707863]
[1738187632919,0.11675259,104000.0,103990.0,0.84787863]
[1738187633221,0.11675259,104000.0,103990.0,0.741235]
[1738187633520,0.30906959,104000.0,103990.0,0.741235]
[1738187634618,0.30906959,104000.0,103990.0,0.660435]
[1738187637723,0.41571322,104000.0,103990.0,0.660435]
[1738187637915,0.41571322,104000.0,103990.0,0.580135]
[1738187638623,0.30096063,104000.0,103990.0,0.580135]
[1738187638923,0.194317,104000.0,103990.0,0.580135]
[1738187640610,0.194317,104000.0,103990.0,0.740235]
[1738187641617,0.194317,104000.0,103990.0,0.662435]
[1738187643327,0.194317,104000.0,103970.0,0.1722079]
[1738187643328,0.192335,103990.0,103970.0,0.1722079]
[1738187643626,0.192403,103960.0,103940.0,0.8975725]
[1738187643819,0.192403,103960.0,103940.0,0.9575725]
[1738187643820,0.29904663,103960.0,103940.0,0.9575725]
[1738187644121,0.29905263,103950.0,103940.0,0.3543475]
[1738187644425,0.76649626,103950.0,103940.0,0.3443475]
[1738187644627,0.74075263,103950.0,103940.0,0.3443475]
[1738187644827,0.84739626,103950.0,103940.0,0.3443475]
[1738187645328,0.74075263,103950.0,103940.0,0.3443475]
[1738187646223,0.74175263,103950.0,103940.0,0.3483475]
[1738187646525,0.84839626,103950.0,103940.0,0.3483475]
[1738187646727,0.92299626,103950.0,103940.0,0.3483475]
[1738187646925,0.92399626,103950.0,103940.0,0.3473475]
[1738187647129,0.81735263,103950.0,103940.0,0.3473475]
[1738187647329,1.13292226,103950.0,103940.0,0.003]
[1738187648214,1.14231882,103950.0,103940.0,0.003]
[1738187648419,1.24896245,103950.0,103940.0,0.003]
[1738187649018,1.14231882,103950.0,103940.0,0.003]
[1738187649219,0.78151882,103950.0,103940.0,0.003]
[1738187649423,1.14231882,103950.0,103940.0,0.003]
[1738187649622,0.78151882,103950.0,103940.0,0.003]
[1738187649928,1.14231882,103950.0,103940.0,0.003]
[1738187650931,0.94129854,103950.0,103940.0,0.003]
[1738187651827,0.64625854,103950.0,103940.0,0.003]
[1738187653730,1.00705854,103950.0,103940.0,0.003]
[1738187653930,0.64625854,103950.0,103940.0,0.003]
[1738187654125,0.61755431,103950.0,103940.0,0.003]
[1738187654433,0.61755431,103950.0,103940.0,0.013]
[1738187655136,1.08499794,103950.0,103940.0,0.013]
[1738187655435,1.08499794,103950.0,103930.0,0.00014397]
[1738187655436,0.29907163,103940.0,103930.0,0.00014397]
[1738187655620,0.65987163,103940.0,103930.0,0.00014397]
[1738187657537,0.66087163,103940.0,103930.0,0.00014397]
[1738187657836,0.66087163,103940.0,103930.0,0.00214397]
[1738187658338,0.193428,103940.0,103930.0,0.36294397]
[1738187658535,0.193428,103940.0,103930.0,0.37294397]
[1738187659535,0.30007163,103940.0,103930.0,0.01214397]
[1738187659735,0.193428,103940.0,103930.0,0.20458997]
[1738187659934,0.193428,103940.0,103930.0,0.56538997]
[1738187662041,0.193428,103940.0,103930.0,0.6720336]
[1738187662239,0.193428,103940.0,103930.0,0.8232336]
[1738187662438,0.193428,103940.0,103930.0,0.71658997]
[1738187662940,0.193428,103940.0,103930.0,0.72636202]
[1738187663742,0.30007163,103940.0,103930.0,0.01214397]
[1738187663942,0.37447163,103940.0,103930.0,0.01214397]
[1738187664141,0.73527163,103940.0,103930.0,0.01214397]
[1738187664836,0.37447163,103940.0,103930.0,0.01214397]
[1738187667239,0.37447163,103940.0,103930.0,0.37294397]
[1738187667444,0.001,103940.0,103930.0,0.6720336]
[1738187667745,0.001,103940.0,103930.0,0.7543336]
[1738187667941,0.10764363,103940.0,103930.0,0.28688997]
[1738187668133,0.30007163,103940.0,103930.0,0.28688997]
[1738187668340,0.30007163,103940.0,103930.0,0.20458997]
[1738187668731,0.30007163,103940.0,103930.0,0.56538997]
[1738187670846,0.30007163,103940.0,103930.0,0.37294397]
[1738187672654,0.38197163,103940.0,103930.0,0.37294397]
[1738187673447,0.63996172,103940.0,103930.0,0.37294397]
[1738187673848,0.63996172,103940.0,103930.0,0.01214397]
[1738187677547,0.38197163,103940.0,103930.0,0.01214397]
[1738187678559,0.38697163,103940.0,103930.0,0.01014397]
[1738187679253,0.38197163,103940.0,103930.0,0.01014397]
[1738187679491,0.39397163,103940.0,103930.0,0.01014397]
[1738187679972,0.38497163,103940.0,103930.0,0.01014397]
[1738187680166,0.39197163,103940.0,103930.0,0.01014397]
[1738187681042,0.75277163,103940.0,103930.0,0.01014397]
[1738187681447,0.81813163,103940.0,103930.0,0.01014397]
[1738187684662,0.98425894,103940.0,103930.0,0.00035127]
[1738187685658,1.09183094,103940.0,103920.0,0.01]
[1738187685863,0.78610263,103930.0,103920.0,0.02014397]
[1738187686860,0.89274626,103930.0,103920.0,0.02014397]
[1738187687059,0.70030026,103930.0,103900.0,0.1]
[1738187687366,0.70030026,103930.0,103900.0,0.11]
[1738187687367,0.65992663,103910.0,103900.0,0.11]
[1738187687560,0.72520663,103910.0,103900.0,0.11]
[1738187687757,0.80740663,103910.0,103900.0,0.11]
[1738187688356,0.80840663,103910.0,103900.0,0.112]
[1738187689564,0.80940663,103910.0,103900.0,0.112]
[1738187690570,0.80840663,103910.0,103900.0,0.11]
[1738187690759,0.80940663,103910.0,103900.0,0.112]
[1738187691265,0.81913051,103910.0,103900.0,0.102]
[1738187695766,0.81913051,103910.0,103900.0,0.00762294]
[1738187697262,0.99127926,103910.0,103900.0,0.00762294]
[1738187699959,0.99127926,103910.0,103900.0,0.01762294]
[1738187700470,0.99111926,103910.0,103900.0,0.01762294]
[1738187705361,0.84379926,103910.0,103900.0,0.01762294]
[1738187705561,0.44143563,103910.0,103900.0,0.36052494]
[1738187705768,0.5193285,103910.0,103900.0,0.43812494]
[1738187705971,0.14539799,103910.0,103900.0,0.79892494]
[1738187706465,0.17229272,103920.0,103900.0,0.71306657]
[1738187706670,0.17229272,103920.0,103910.0,0.553283]
[1738187706863,0.17229272,103920.0,103910.0,0.653283]
[1738187707366,0.27893635,103920.0,103910.0,0.653283]
[1738187707777,0.17229272,103920.0,103910.0,0.653283]
[1738187708274,0.17329272,103920.0,103910.0,0.653283]
[1738187708577,0.17229272,103920.0,103910.0,0.653283]
[1738187708879,0.17229272,103920.0,103910.0,0.654283]
[1738187708880,0.17329272,103920.0,103910.0,0.654283]
[1738187709573,0.08723861,103920.0,103910.0,0.656283]
[1738187711679,0.27970361,103920.0,103910.0,0.656283]
[1738187714187,0.39449646,103920.0,103910.0,0.656283]
[1738187716043,0.50114009,103920.0,103910.0,0.656283]
[1738187716414,0.39449646,103920.0,103910.0,0.656283]
[1738187718103,0.27970361,103920.0,103910.0,0.656283]
[1738187719111,0.38634724,103920.0,103910.0,0.656283]
[1738187720509,0.38634724,103920.0,103910.0,0.295483]
[1738187724618,0.45914724,103920.0,103910.0,0.295483]
[1738187725059,0.57394009,103920.0,103910.0,0.295483]
[1738187725223,0.39449646,103920.0,103910.0,0.656283]
[1738187727431,0.39449646,103920.0,103910.0,0.295483]
[1738187727631,0.39449646,103920.0,103910.0,0.656283]
[1738187729530,0.20203146,103920.0,103910.0,0.76292663]
[1738187730221,0.20203146,103920.0,103910.0,0.656283]
[1738187730634,0.39449646,103920.0,103910.0,0.656283]
[1738187731324,0.20203146,103920.0,103910.0,0.656283]
[1738187734204,0.39449646,103920.0,103910.0,0.656283]
[1738187734395,0.50114009,103920.0,103910.0,0.656283]
[1738187734597,0.57864009,103920.0,103910.0,0.656283]
[1738187735300,0.47199646,103920.0,103910.0,0.656283]
[1738187737606,0.39449646,103920.0,103910.0,0.656283]
[1738187738801,0.30840182,103920.0,103910.0,0.656283]
[1738187739006,0.33769885,103920.0,103910.0,0.656283]
[1738187739504,0.33769885,103920.0,103910.0,0.76292663]
[1738187741102,0.14523385,103920.0,103910.0,0.76292663]
[1738187741706,0.17214875,103930.0,103920.0,0.192465]
[1738187741896,0.268519,103950.0,103940.0,0.192428]
[1738187741897,0.0761,103950.0,103940.0,0.192428]
[1738187742097,0.0761,103950.0,103940.0,1.13067163]
[1738187742399,0.19866482,103960.0,103950.0,0.192409]
[1738187742591,0.19866482,103960.0,103950.0,0.90265263]
[1738187742798,0.51140412,103970.0,103950.0,0.89428726]
[1738187743006,0.51140412,103970.0,103960.0,0.65983463]
[1738187743203,0.51140412,103970.0,103960.0,0.82983463]
[1738187743402,0.51140412,103970.0,103960.0,0.723191]
[1738187745104,0.52040412,103970.0,103960.0,0.723191]
[1738187745402,0.71977612,103970.0,103960.0,0.723191]
[1738187746650,0.71977612,103970.0,103960.0,0.73298876]
[1738187747214,0.20851597,103970.0,103960.0,0.73298876]
[1738187747405,0.3151596,103970.0,103960.0,0.37218876]
[1738187747605,0.3151596,103970.0,103960.0,0.17]
[1738187747802,0.6759596,103970.0,103960.0,0.17]
[1738187748104,0.3151596,103970.0,103960.0,0.17]
[1738187748309,0.6759596,103970.0,103960.0,0.17]
[1738187749307,0.3151596,103970.0,103960.0,0.17]
[1738187750903,0.43006862,103970.0,103960.0,0.17]
[1738187751612,0.79086862,103970.0,103960.0,0.17]
[1738187752195,0.59849662,103970.0,103950.0,0.553205]
[1738187752401,0.192391,103960.0,103950.0,0.593205]
[1738187753607,0.192391,103960.0,103950.0,0.594205]
[1738187753803,0.28737401,103960.0,103950.0,0.594205]
[1738187754904,0.29337401,103960.0,103950.0,0.594205]
[1738187755302,0.37257401,103960.0,103950.0,0.594205]
[1738187756211,0.52277401,103960.0,103950.0,0.594205]
[1738187757110,0.53230727,103960.0,103950.0,0.594205]
[1738187757902,0.53230727,103960.0,103950.0,0.70084863]
[1738187757903,0.17638301,103960.0,103950.0,0.70084863]
[1738187758111,0.10098301,103960.0,103950.0,0.70084863]
[1738187758402,0.10098301,103960.0,103950.0,0.594205]
[1738187758810,0.29337401,103960.0,103950.0,0.594205]
[1738187759103,0.18088301,103960.0,103950.0,0.70084863]
[1738187759310,0.37327401,103960.0,103950.0,0.70084863]
[1738187760308,0.287291,103960.0,103950.0,0.70084863]
[1738187760713,0.287291,103960.0,103950.0,0.594205]
[1738187762616,0.367391,103960.0,103950.0,0.594205]
[1738187762801,0.47403463,103960.0,103950.0,0.4018]
[1738187763003,0.47403463,103960.0,103950.0,0.041]
[1738187763312,0.83483463,103960.0,103950.0,0.041]
[1738187763509,0.192409,103950.0,103940.0,0.00014397]
[1738187763704,0.80101263,103950.0,103940.0,0.00014397]
[1738187764605,0.333569,103950.0,103940.0,0.01014397]
[1738187764812,0.261569,103950.0,103940.0,0.3092156]
[1738187765006,0.261569,103950.0,103940.0,0.28267197]
[1738187765206,0.206409,103950.0,103940.0,0.28267197]
[1738187766313,0.31305263,103950.0,103940.0,0.28267197]
[1738187766916,0.31305263,103950.0,103940.0,0.20357197]
[1738187767216,0.31305263,103950.0,103940.0,0.01114397]
[1738187768018,0.39903564,103950.0,103940.0,0.01114397]
[1738187768218,0.75983564,103950.0,103940.0,0.01114397]
[1738187768419,0.39903564,103950.0,103940.0,0.01114397]
[1738187768613,0.75983564,103950.0,103940.0,0.01114397]
[1738187768812,0.39903564,103950.0,103940.0,0.01114397]
[1738187769514,0.75983564,103950.0,103940.0,0.01114397]
[1738187770020,0.86647927,103950.0,103940.0,0.01114397]
[1738187771317,0.192465,103920.0,103910.0,0.95764902]
[1738187771517,0.192465,103920.0,103910.0,1.12764902]
[1738187771913,0.192465,103920.0,103910.0,0.76684902]
[1738187772113,0.192465,103920.0,103910.0,1.12764902]
[1738187772816,0.194465,103920.0,103910.0,1.13864902]
[1738187773524,0.30110863,103920.0,103910.0,0.58537002]
[1738187773719,0.81830863,103920.0,103910.0,0.58537002]
[1738187773916,0.92495226,103920.0,103910.0,0.58537002]
[1738187774216,0.81830863,103920.0,103910.0,0.58537002]
[1738187775118,0.81830863,103920.0,103910.0,0.58392661]
[1738187775827,0.81730863,103920.0,103910.0,0.58092661]
[1738187776233,0.81630863,103920.0,103910.0,0.57392661]
[1738187776427,0.90329072,103920.0,103910.0,0.177]
[1738187777828,0.90329072,103920.0,103910.0,0.007]
[1738187778746,1.00993435,103920.0,103910.0,0.007]
[1738187778922,0.81746935,103920.0,103900.0,0.00571896]
[1738187779120,0.79784663,103910.0,103900.0,0.04571896]
[1738187780228,0.79784663,103910.0,103900.0,0.04871896]
[1738187781429,0.79884663,103910.0,103900.0,0.04871896]
[1738187782031,0.79984663,103910.0,103900.0,0.04871896]
[1738187783918,0.71400726,103910.0,103890.0,0.01]
[1738187784126,0.79464563,103900.0,103890.0,0.01]
[1738187785021,0.90128926,103900.0,103890.0,0.01]
[1738187785325,0.192539,103880.0,103870.0,0.36633806]
[1738187785528,0.29918263,103880.0,103870.0,0.46633806]
[1738187785834,0.29918263,103880.0,103870.0,0.29399899]
[1738187786431,0.29918263,103880.0,103870.0,0.10144399]
[1738187786829,0.43242263,103880.0,103870.0,0.10444399]
[1738187788426,0.43342263,103880.0,103870.0,0.10444399]
[1738187788936,0.002,103880.0,103870.0,0.65780199]
[1738187789934,0.194539,103880.0,103870.0,0.65780199]
[1738187791333,0.30118263,103880.0,103870.0,0.65780199]
[1738187792332,0.194539,103880.0,103870.0,0.65780199]
[1738187794736,0.002,103880.0,103870.0,0.76444562]
[1738187796229,0.76862626,103880.0,103870.0,9.9e-07]
[1738187796426,0.76862626,103880.0,103860.0,0.15]
[1738187796427,0.192595,103850.0,103840.0,0.56645007]
[1738187796627,0.29923863,103850.0,103840.0,0.45383907]
[1738187797537,0.30023863,103850.0,103840.0,0.81463907]
[1738187797732,0.30023863,103850.0,103840.0,1.00725207]
[1738187798032,0.193595,103850.0,103840.0,1.00725207]
[1738187798336,0.194595,103850.0,103840.0,1.06550054]
[1738187799040,0.193595,103850.0,103840.0,1.06550054]
[1738187799240,0.194595,103850.0,103840.0,1.06550054]
[1738187801841,0.002,103850.0,103840.0,1.06550054]
[1738187802042,0.194595,103850.0,103840.0,1.06550054]
[1738187803536,0.194595,103850.0,103840.0,0.834913]
[1738187807441,0.194595,103850.0,103840.0,0.697113]
[1738187810551,0.194595,103850.0,103840.0,0.80375663]
[1738187811252,0.194595,103850.0,103840.0,0.697113]
[1738187813949,0.194595,103850.0,103840.0,0.633413]
[1738187814251,0.49453863,103850.0,103840.0,0.633413]
[1738187814647,0.49453863,103850.0,103840.0,0.80577396]
[1738187815938,0.387895,103850.0,103840.0,0.80577396]
[1738187816142,0.49453863,103850.0,103840.0,0.80577396]
[1738187816338,0.49453863,103850.0,103840.0,0.44497396]
[1738187816952,0.49453863,103850.0,103840.0,0.80577396]
[1738187818146,0.58023618,103850.0,103840.0,0.272613]
[1738187818738,0.58023618,103850.0,103840.0,0.633413]
[1738187819550,0.58023618,103850.0,103840.0,0.08]
[1738187819744,0.94103618,103850.0,103840.0,0.08]
[1738187821157,0.53691255,103850.0,103840.0,0.633413]
[1738187822450,0.65182157,103850.0,103840.0,0.633413]
[1738187822655,0.65082157,103850.0,103840.0,0.633413]
[1738187822853,0.65182157,103850.0,103840.0,0.633413]
[1738187823943,0.33260657,103850.0,103840.0,0.633413]
[1738187824349,0.20260657,103850.0,103840.0,0.74005663]
[1738187825454,0.20260657,103850.0,103840.0,0.80305663]
[1738187825656,0.39520157,103850.0,103840.0,0.696413]
[1738187826358,0.28029255,103850.0,103840.0,0.696413]
[1738187826559,0.28029255,103850.0,103840.0,0.633413]
[1738187827951,0.40909255,103850.0,103840.0,0.633413]
[1738187829256,0.34369255,103850.0,103840.0,0.633413]
[1738187829858,0.34369255,103850.0,103840.0,0.74005663]
[1738187830053,0.20260657,103850.0,103840.0,1.14300513]
[1738187831054,0.20260657,103850.0,103840.0,1.15283535]
[1738187832061,0.20260657,103850.0,103840.0,1.04619172]
[1738187833781,0.20260657,103850.0,103840.0,1.15283535]
[1738187834871,0.08769755,103850.0,103840.0,0.98047439]
[1738187835063,0.08769755,103850.0,103840.0,0.86400054]
[1738187835268,0.28029255,103850.0,103840.0,0.86400054]
[1738187835767,0.08769755,103850.0,103840.0,0.86400054]
[1738187836579,0.28029255,103850.0,103840.0,0.86400054]
[1738187836769,0.34099255,103850.0,103840.0,0.86400054]
[1738187839177,0.14839755,103850.0,103840.0,0.86400054]
[1738187839375,0.08769755,103850.0,103840.0,0.97064417]
[1738187841079,0.28029255,103850.0,103840.0,0.86400054]
[1738187841578,0.38693618,103850.0,103840.0,0.86400054]
[1738187841778,0.38693618,103850.0,103840.0,0.67138754]
[1738187841982,0.51263618,103850.0,103840.0,0.31058754]
[1738187842579,0.42693863,103850.0,103840.0,0.67407568]
[1738187845188,0.320295,103850.0,103840.0,1.22748868]
[1738187845581,0.42693863,103850.0,103840.0,1.22748868]
[1738187845980,0.320295,103850.0,103840.0,1.22769629]
[1738187846180,0.32996,103850.0,103840.0,1.22769629]
[1738187846888,0.43660363,103850.0,103840.0,1.22769629]
[1738187847888,0.6372102,103850.0,103840.0,0.63362061]
[1738187849587,0.53056657,103850.0,103840.0,0.63362061]
[1738187849788,0.46896657,103850.0,103840.0,0.63362061]
[1738187849983,0.46896657,103850.0,103840.0,0.69642061]
[1738187850688,0.20260657,103850.0,103840.0,0.80306424]
[1738187850883,0.37748283,103860.0,103850.0,0.192595]
[1738187850884,0.25835647,103860.0,103850.0,0.192595]
[1738187851088,0.25835647,103860.0,103850.0,0.713395]
[1738187851680,0.5575761,103860.0,103850.0,0.713395]
[1738187852581,0.5665761,103860.0,103850.0,0.713395]
[1738187853278,0.5715761,103860.0,103850.0,0.713395]
[1738187854091,0.5625761,103860.0,103850.0,0.714395]
[1738187854290,0.5625761,103860.0,103850.0,0.5218]
[1738187854598,1.03001973,103860.0,103850.0,0.161]
[1738187854996,0.77180723,103860.0,103850.0,0.161]
[1738187855288,0.77180723,103860.0,103850.0,0.33411207]
[1738187855688,0.78080723,103860.0,103850.0,0.33311207]
[1738187856588,0.78180723,103860.0,103850.0,0.33311207]
[1738187857191,0.77580723,103860.0,103850.0,0.33311207]
[1738187857396,0.78280723,103860.0,103850.0,0.33311207]
[1738187857992,0.77580723,103860.0,103850.0,0.33311207]
[1738187858193,0.78280723,103860.0,103850.0,0.33311207]
[1738187858384,0.95504261,103860.0,103850.0,0.16]
[1738187858584,0.94604261,103860.0,103850.0,0.16]
[1738187858791,0.95504261,103860.0,103850.0,0.16]
[1738187859698,0.94804261,103860.0,103850.0,0.16]
[1738187859886,0.95504261,103860.0,103850.0,0.16]
[1738187865686,0.94604261,103860.0,103850.0,0.16]
[1738187865892,0.84839898,103860.0,103850.0,0.16]
[1738187866198,1.01772261,103860.0,103850.0,0.16]
[1738187866499,1.01672261,103860.0,103850.0,0.16]
[1738187867401,1.01772261,103860.0,103850.0,0.16]
[1738187868201,1.01672261,103860.0,103850.0,0.16]
[1738187868901,1.00772261,103860.0,103850.0,0.16]
[1738187869103,1.01672261,103860.0,103850.0,0.16]
[1738187871595,1.00772261,103860.0,103850.0,0.16]
[1738187871906,1.16004121,103860.0,103850.0,0.16]
[1738187872307,1.15104121,103860.0,103850.0,0.16]
[1738187872504,1.16004121,103860.0,103850.0,0.16]
[1738187881310,1.05339758,103860.0,103850.0,0.16]
[1738187883808,0.91007898,103860.0,103850.0,0.16]
[1738187886109,0.48659898,103860.0,103850.0,0.16]
[1738187886306,0.37995535,103860.0,103850.0,0.839795]
[1738187886509,0.48659898,103860.0,103850.0,0.839795]
[1738187888318,0.37995535,103860.0,103850.0,0.839795]
[1738187891626,0.48659898,103860.0,103850.0,0.839795]
[1738187892119,0.60110138,103860.0,103850.0,1.01290707]
[1738187892429,0.428866,103860.0,103850.0,1.01290707]
[1738187893822,0.32222237,103860.0,103850.0,1.01290707]
[1738187896418,0.32222237,103860.0,103850.0,0.839795]
[1738187898727,0.32222237,103860.0,103850.0,0.90990974]
[1738187901930,0.32222237,103860.0,103850.0,0.839795]
[1738187902232,0.39233711,103860.0,103850.0,0.713395]
[1738187902432,0.32222237,103860.0,103850.0,0.78350974]
[1738187909736,0.12964637,103860.0,103850.0,0.78350974]
[1738187910835,0.32222237,103860.0,103850.0,0.78350974]
[1738187912237,0.32222237,103860.0,103850.0,0.713395]
[1738187913443,0.20771997,103860.0,103850.0,1.11732316]
[1738187915236,0.20771997,103860.0,103850.0,1.1874379]
[1738187917138,0.20771997,103860.0,103850.0,1.11732316]
[1738187918438,0.27783471,103860.0,103850.0,1.11732316]
[1738187918741,0.27783471,103860.0,103850.0,0.56392816]
[1738187919443,0.20771997,103860.0,103850.0,0.8266379]
[1738187919634,0.20771997,103860.0,103850.0,1.1874379]
[1738187919943,0.20771997,103860.0,103850.0,1.11732316]
[1738187921342,0.53546512,103860.0,103850.0,0.88650707]
[1738187921543,0.53546512,103860.0,103850.0,0.33311207]
[1738187922742,0.53546512,103860.0,103850.0,0.52570707]
[1738187923535,0.53546512,103860.0,103850.0,0.88650707]
[1738187923943,0.46535038,103860.0,103850.0,0.88650707]
[1738187924145,0.46535038,103860.0,103850.0,0.95681787]
[1738187927548,0.46535038,103860.0,103850.0,1.18763396]
[1738187927549,0.32222237,103860.0,103850.0,1.18763396]
[1738187928740,0.32222237,103860.0,103850.0,1.11751922]
[1738187929747,0.32222237,103860.0,103850.0,1.18763396]
[1738187930648,0.32222237,103860.0,103850.0,0.92492422]
[1738187930853,0.95045185,103860.0,103850.0,0.56412422]
[1738187933846,1.00814483,103860.0,103850.0,0.16019606]
[1738187936451,0.37995535,103860.0,103850.0,0.71359106]
[1738187936659,0.37995535,103860.0,103850.0,0.7837058]
[1738187937549,0.4210283,103860.0,103850.0,0.71359106]
[1738187938554,0.35091356,103860.0,103850.0,0.71359106]
[1738187938858,0.35091356,103860.0,103850.0,0.72325093]
[1738187940960,0.20771997,103860.0,103850.0,0.896363]
[1738187942046,0.20771997,103860.0,103850.0,0.88670313]
[1738187944757,0.32223836,103860.0,103850.0,0.88670313]
[1738187947263,0.42908408,103860.0,103850.0,0.88670313]
[1738187948759,0.42908408,103860.0,103850.0,0.33330813]
[1738187949363,0.42908408,103860.0,103850.0,0.52590313]
[1738187952356,0.42908408,103860.0,103850.0,0.35279106]
[1738187952766,0.42908408,103860.0,103850.0,0.16019606]
[1738187956366,0.57227767,103860.0,103850.0,0.16019606]
[1738187956966,0.67912339,103860.0,103850.0,0.16019606]
[1738187957163,1.03992339,103860.0,103850.0,0.16019606]
[1738187957858,0.93307767,103860.0,103850.0,0.16019606]
[1738187958058,1.03992339,103860.0,103850.0,0.16019606]
[1738187958270,0.93307767,103860.0,103850.0,0.16019606]
[1738187960569,0.96650617,103860.0,103850.0,0.16019606]
[1738187960969,0.85198778,103860.0,103850.0,0.16019606]
[1738187962566,0.92212489,103860.0,103850.0,0.16019606]
[1738187962772,0.85198778,103860.0,103850.0,0.16019606]
[1738187964162,0.192595,103850.0,103840.0,0.41311207]
[1738187964362,0.192613,103840.0,103830.0,0.23081609]
[1738187964567,0.192613,103840.0,103820.0,0.28761706]
[1738187964568,0.192632,103830.0,103820.0,0.28761706]
[1738187964763,0.82824333,103830.0,103820.0,0.23254587]
[1738187964965,0.19265,103820.0,103810.0,0.34538862]
[1738187965165,0.87960422,103820.0,103810.0,0.34538862]
[1738187965467,0.94974133,103820.0,103810.0,0.34538862]
[1738187966164,0.75709133,103820.0,103800.0,0.49977433]
[1738187966370,0.69374322,103810.0,103800.0,0.49977433]
[1738187966666,0.7674857,103810.0,103800.0,0.49977433]
[1738187967462,0.7684857,103810.0,103800.0,0.49977433]
[1738187968470,0.7694857,103810.0,103800.0,0.49977433]
[1738187969070,0.192687,103800.0,103790.0,0.88150983]
[1738187969277,0.8313037,103800.0,103790.0,0.8287541]
[1738187969574,0.72429535,103800.0,103790.0,0.8287541]
[1738187969763,0.29969535,103800.0,103790.0,1.0214601]
[1738187970068,0.29969535,103800.0,103790.0,0.192706]
[1738187970462,0.30069535,103800.0,103790.0,0.192706]
[1738187971162,0.30169535,103800.0,103790.0,0.192706]
[1738187971367,0.002,103800.0,103790.0,0.553506]
[1738187971973,0.10900835,103800.0,103790.0,0.553506]
[1738187972377,0.11848923,103800.0,103790.0,0.553506]
[1738187974175,0.01148088,103800.0,103790.0,0.553506]
[1738187974575,0.002,103800.0,103790.0,0.67051435]
[1738187976975,0.08538971,103810.0,103790.0,0.77780835]
[1738187977284,0.08538971,103810.0,103800.0,0.66049535]
[1738187977476,0.08538971,103810.0,103800.0,0.71049535]
[1738187978276,0.08638971,103810.0,103800.0,0.71049535]
[1738187978482,0.001,103810.0,103800.0,0.603487]
[1738187978778,0.29980932,103820.0,103800.0,0.4108]
[1738187978971,0.001,103810.0,103800.0,0.603487]
[1738187979177,0.30067735,103810.0,103800.0,0.603487]
[1738187979375,0.29967735,103810.0,103800.0,0.242687]
[1738187979580,0.30067735,103810.0,103800.0,0.05]
[1738187979776,0.66147735,103810.0,103800.0,0.05]
[1738187981174,0.66147735,103810.0,103800.0,0.052]
[1738187981374,0.78365735,103810.0,103800.0,0.052]
[1738187981674,0.90665735,103810.0,103800.0,0.052]
[1738187982777,0.91612442,103810.0,103800.0,0.052]
[1738187983383,1.00151413,103810.0,103800.0,0.052]
[1738187983768,1.00151413,103810.0,103800.0,0.002]
[1738187984374,1.00151413,103810.0,103780.0,0.613517]
[1738187984375,0.80884513,103810.0,103780.0,0.613517]
[1738187984578,0.192706,103790.0,103780.0,0.643517]
[1738187984777,0.192691,103800.0,103790.0,0.192699]
[1738187985081,0.19283497,103800.0,103790.0,0.202699]
[1738187987283,0.19383497,103800.0,103790.0,0.20069967]
[1738187987583,0.19483497,103800.0,103790.0,0.20069967]
[1738187989687,0.28017376,103800.0,103790.0,0.20069967]
[1738187990185,0.28017376,103800.0,103790.0,0.56149967]
[1738187991887,0.28017376,103800.0,103790.0,0.66850802]
[1738187992084,0.28017376,103800.0,103790.0,0.20069967]
[1738187992585,0.28017376,103800.0,103790.0,0.32879967]
[1738187993293,0.39402671,103800.0,103790.0,0.32879967]
[1738187993789,0.39402671,103800.0,103790.0,0.79660802]
[1738187994173,0.39402671,103800.0,103790.0,0.68959967]
[1738187994892,0.39402671,103800.0,103790.0,0.32879967]
[1738187995389,0.39402671,103800.0,103790.0,0.68959967]
[1738187995890,0.86183506,103800.0,103790.0,0.1381]
[1738187996182,0.86183506,103800.0,103790.0,0.01]
[1738187997083,0.8348787,103800.0,103790.0,0.01]
[1738187997388,0.87018653,103800.0,103790.0,0.01]
[1738187997592,0.97719488,103800.0,103790.0,0.01]
[1738187998987,1.09999488,103800.0,103790.0,0.01]
[1738188001288,0.85067035,103800.0,103790.0,0.01]
[1738188001482,0.72787035,103800.0,103790.0,0.01]
[1738188001688,0.17437935,103800.0,103790.0,0.79421435]
[1738188003687,0.36706635,103800.0,103790.0,0.687206]
[1738188003997,0.4740747,103800.0,103790.0,0.1337]
[1738188005098,0.38758173,103800.0,103790.0,0.1337]
[1738188006284,0.28057338,103800.0,103790.0,0.1337]
[1738188007901,0.80902173,103800.0,103790.0,0.01]
[1738188010001,1.03841871,103800.0,103790.0,0.01]
[1738188011800,0.192719,103790.0,103770.0,0.74984069]
[1738188011992,0.192719,103790.0,103770.0,0.79984069]
[1738188013000,0.193719,103790.0,103770.0,0.79984069]
[1738188013490,0.192725,103780.0,103770.0,0.79984069]
[1738188014391,0.192725,103780.0,103770.0,0.72653]
[1738188014796,0.30816482,103780.0,103770.0,0.72653]
[1738188015101,0.30816482,103780.0,103770.0,0.05]
[1738188015394,0.38885652,103780.0,103760.0,0.4408]
[1738188015599,0.192762,103760.0,103750.0,0.36828459]
[1738188015786,0.553562,103760.0,103750.0,0.36828459]
[1738188016095,0.78267035,103760.0,103750.0,0.36828459]
[1738188016596,0.9969167,103760.0,103730.0,0.29171544]
[1738188016785,1.1284157,103740.0,103730.0,0.29171544]
[1738188016989,0.192817,103730.0,103720.0,0.06502417]
[1738188017191,0.66062535,103730.0,103720.0,0.03151155]
[1738188017390,0.66062535,103730.0,103720.0,0.01642142]
[1738188017603,0.66062535,103730.0,103710.0,1.03323814]
[1738188017604,0.52824835,103730.0,103710.0,1.03323814]
[1738188017896,0.52824835,103720.0,103710.0,1.03323814]
[1738188018093,0.46780835,103720.0,103710.0,1.03323814]
[1738188018301,0.3608,103720.0,103710.0,1.22609314]
[1738188018492,0.3608,103720.0,103710.0,1.28849314]
[1738188018692,0.07090556,103730.0,103720.0,0.192836]
[1738188018892,0.16855232,103740.0,103730.0,0.192817]
[1738188019200,0.3608,103760.0,103750.0,0.19278]
[1738188019388,0.52820835,103770.0,103760.0,0.192762]
[1738188019703,0.42312733,103770.0,103760.0,0.315962]